[Event "Titled Tuesday Blitz October 31 Late 2023"]
[White "UK_23"]
[Black "maksimys18"]
[WhiteElo "2378"]
[BlackElo "2500"]
[Result "0-1"]
[Round "3"]
[TimeControl "180+1"]
[Date "2023.10.31"]
[WhiteClock "0:00:13"]
[BlackClock "0:00:13"]
[Board "123"]

1. e4 {[%clk 0:03:00]}  e6 {[%clk 0:03:00]} 2. d4 {[%clk 0:03:00]}  d5 {[%clk 0:03:00]} 3. exd5 {[%clk 0:03:01]}  exd5 {[%clk 0:03:01]} 4. Nf3 {[%clk 0:03:02]}  c6 {[%clk 0:03:01]} 5. c4 {[%clk 0:03:01]}  Bd6 {[%clk 0:03:02]} 6. Nc3 {[%clk 0:03:01]}  Ne7 {[%clk 0:03:02]} 7. Bd3 {[%clk 0:03:00]}  O-O {[%clk 0:03:02]} 8. O-O {[%clk 0:03:01]}  dxc4 {[%clk 0:03:03]} 9. Bxc4 {[%clk 0:03:01]}  Bf5 {[%clk 0:03:03]} 10. Bg5 {[%clk 0:02:57]}  Nd7 {[%clk 0:03:02]} 11. Re1 {[%clk 0:02:56]}  Kh8 {[%clk 0:03:02]} 12. Ne5 {[%clk 0:02:56]}  Nxe5 {[%clk 0:03:01]} 13. dxe5 {[%clk 0:02:57]}  Bc5 {[%clk 0:03:00]} 14. Qb3 {[%clk 0:02:41]}  f6 {[%clk 0:02:58]} 15. exf6 {[%clk 0:02:33]}  gxf6 {[%clk 0:02:59]} 16. Bh6 {[%clk 0:02:33]}  Qd4 {[%clk 0:02:49]} 17. Bxf8 {[%clk 0:02:13]}  Qxf2+ {[%clk 0:02:48]} 18. Kh1 {[%clk 0:02:13]}  Rxf8 {[%clk 0:02:48]} 19. Qxb7 {[%clk 0:02:03]}  Bh3 {[%clk 0:02:40]} 20. Rg1 {[%clk 0:01:44]}  Bc8 {[%clk 0:02:16]} 21. Qc7 {[%clk 0:01:36]}  Qd4 {[%clk 0:02:09]} 22. Bb3 {[%clk 0:01:27]}  Bd6 {[%clk 0:02:08]} 23. Qa5 {[%clk 0:01:25]}  c5 {[%clk 0:02:04]} 24. Rad1 {[%clk 0:01:21]}  Qf4 {[%clk 0:02:04]} 25. Rxd6 {[%clk 0:01:13]}  Qxd6 {[%clk 0:02:04]} 26. Rd1 {[%clk 0:01:14]}  Qe5 {[%clk 0:01:57]} 27. Qxa7 {[%clk 0:01:12]}  Nf5 {[%clk 0:01:51]} 28. Bc2 {[%clk 0:01:06]}  Rg8 {[%clk 0:01:47]} 29. Qf7 {[%clk 0:00:48]}  Be6 {[%clk 0:01:45]} 30. Qb7 {[%clk 0:00:46]}  Qf4 {[%clk 0:01:41]} 31. a4 {[%clk 0:00:36]}  Qh4 {[%clk 0:01:25]} 32. Bxf5 {[%clk 0:00:26]}  Bxf5 {[%clk 0:01:25]} 33. Qf3 {[%clk 0:00:26]}  Bg4 {[%clk 0:01:18]} 34. Qf4 {[%clk 0:00:23]}  h5 {[%clk 0:01:12]} 35. Rf1 {[%clk 0:00:23]}  f5 {[%clk 0:01:08]} 36. h3 {[%clk 0:00:17]}  Kh7 {[%clk 0:01:06]} 37. Nd5 {[%clk 0:00:16]}  Rg6 {[%clk 0:01:01]} 38. Ne3 {[%clk 0:00:16]}  Rf6 {[%clk 0:00:47]} 39. Kg1 {[%clk 0:00:16]}  Kg6 {[%clk 0:00:40]} 40. hxg4 {[%clk 0:00:17]}  hxg4 {[%clk 0:00:41]} 41. Nd5 {[%clk 0:00:16]}  Rf7 {[%clk 0:00:39]} 42. Qd6+ {[%clk 0:00:16]}  Kg7 {[%clk 0:00:39]} 43. Nf4 {[%clk 0:00:15]}  g3 {[%clk 0:00:34]} 44. Qg6+ {[%clk 0:00:15]}  Kh8 {[%clk 0:00:30]} 45. Nh3 {[%clk 0:00:15]}  Rf6 {[%clk 0:00:18]} 46. Qe8+ {[%clk 0:00:15]}  Kg7 {[%clk 0:00:18]} 47. Qe7+ {[%clk 0:00:15]}  Kg6 {[%clk 0:00:18]} 48. Rf4 {[%clk 0:00:14]}  Qh5 {[%clk 0:00:16]} 49. Qe8+ {[%clk 0:00:14]}  Rf7 {[%clk 0:00:15]} 50. Qg8+ {[%clk 0:00:13]}  Kf6 {[%clk 0:00:15]} 51. Qd8+ {[%clk 0:00:12]}  Kg6 {[%clk 0:00:15]} 52. Qd6+ {[%clk 0:00:12]}  Rf6 {[%clk 0:00:15]} 53. Qd2 {[%clk 0:00:13]}  Re6 {[%clk 0:00:14]} 54. Rf1 {[%clk 0:00:12]}  Re2 {[%clk 0:00:13]} 55. Nf4+ {[%clk 0:00:12]}  Kf7 {[%clk 0:00:13]} 56. Qxe2 {[%clk 0:00:13]}  Qh2# {[%clk 0:00:13]} 0-1


[Site "https://www.chess.com"]

[Event "Titled Tuesday Blitz October 31 Late 2023"]
[White "Reprintsev, Alexander"]
[Black "KorolDimitriy75"]
[WhiteFideId "14100541"]
[WhiteElo "2496"]
[BlackElo "2357"]
[Result "1-0"]
[Round "3"]
[TimeControl "180+1"]
[Date "2023.10.31"]
[WhiteClock "0:01:22"]
[BlackClock "0:00:00"]
[Board "124"]

1. e4 {[%clk 0:02:52]}  c5 {[%clk 0:02:59]} 2. b3 {[%clk 0:02:51]}  Nc6 {[%clk 0:02:58]} 3. Bb2 {[%clk 0:02:51]}  d6 {[%clk 0:02:59]} 4. Bb5 {[%clk 0:02:51]}  Bd7 {[%clk 0:02:58]} 5. Ne2 {[%clk 0:02:50]}  e5 {[%clk 0:02:58]} 6. d3 {[%clk 0:02:40]}  g6 {[%clk 0:02:57]} 7. Nd2 {[%clk 0:02:36]}  Bg7 {[%clk 0:02:58]} 8. f4 {[%clk 0:02:35]}  Nge7 {[%clk 0:02:55]} 9. O-O {[%clk 0:02:34]}  O-O {[%clk 0:02:21]} 10. c4 {[%clk 0:02:32]}  f5 {[%clk 0:02:17]} 11. Nf3 {[%clk 0:02:26]}  Nd4 {[%clk 0:02:04]} 12. Bxd7 {[%clk 0:02:23]}  Qxd7 {[%clk 0:02:05]} 13. Nfxd4 {[%clk 0:02:15]}  cxd4 {[%clk 0:02:05]} 14. Ng3 {[%clk 0:02:08]}  Rae8 {[%clk 0:02:00]} 15. fxe5 {[%clk 0:02:02]}  dxe5 {[%clk 0:01:56]} 16. Ba3 {[%clk 0:02:02]}  f4 {[%clk 0:01:51]} 17. Nh1 {[%clk 0:01:59]}  g5 {[%clk 0:01:31]} 18. Nf2 {[%clk 0:01:57]}  Rf6 {[%clk 0:01:25]} 19. Bxe7 {[%clk 0:01:56]}  Qxe7 {[%clk 0:01:17]} 20. h3 {[%clk 0:01:56]}  Qf7 {[%clk 0:01:15]} 21. b4 {[%clk 0:01:55]}  h5 {[%clk 0:01:14]} 22. Rc1 {[%clk 0:01:53]}  Bh6 {[%clk 0:01:08]} 23. c5 {[%clk 0:01:49]}  Rf8 {[%clk 0:00:56]} 24. Qb3 {[%clk 0:01:49]}  Qxb3 {[%clk 0:00:39]} 25. axb3 {[%clk 0:01:48]}  f3 {[%clk 0:00:39]} 26. g3 {[%clk 0:01:48]}  g4 {[%clk 0:00:39]} 27. Ra1 {[%clk 0:01:46]}  Be3 {[%clk 0:00:28]} 28. Rxa7 {[%clk 0:01:44]}  h4 {[%clk 0:00:12]} 29. Kh2 {[%clk 0:01:42]}  hxg3+ {[%clk 0:00:04]} 30. Kxg3 {[%clk 0:01:42]}  Bf4+ {[%clk 0:00:04]} 31. Kxg4 {[%clk 0:01:41]}  Rg6+ {[%clk 0:00:04]} 32. Kxf3 {[%clk 0:01:36]}  Be3+ {[%clk 0:00:04]} 33. Ke2 {[%clk 0:01:36]}  Rg2 {[%clk 0:00:04]} 34. Rxb7 {[%clk 0:01:34]}  Rfxf2+ {[%clk 0:00:04]} 35. Rxf2 {[%clk 0:01:34]}  Rxf2+ {[%clk 0:00:05]} 36. Ke1 {[%clk 0:01:34]}  Rc2 {[%clk 0:00:04]} 37. Re7 {[%clk 0:01:29]}  Rc3 {[%clk 0:00:03]} 38. Rxe5 {[%clk 0:01:27]}  Rxb3 {[%clk 0:00:03]} 39. c6 {[%clk 0:01:28]}  Rc3 {[%clk 0:00:02]} 40. b5 {[%clk 0:01:26]}  Kf7 {[%clk 0:00:02]} 41. h4 {[%clk 0:01:25]}  Kf6 {[%clk 0:00:00]} 42. Re8 {[%clk 0:01:22]} 1-0


[Site "https://www.chess.com"]

[Event "Titled Tuesday Blitz October 31 Late 2023"]
[White "Bokros, Albert"]
[Black "Urbina Perez, Juan Antonio"]
[WhiteFideId "710458"]
[BlackFideId "2217368"]
[WhiteElo "2343"]
[BlackElo "2489"]
[Result "0-1"]
[Round "3"]
[TimeControl "180+1"]
[Date "2023.10.31"]
[WhiteClock "0:00:01"]
[BlackClock "0:00:33"]
[Board "125"]

1. e4 {[%clk 0:02:54]}  c5 {[%clk 0:02:58]} 2. Nf3 {[%clk 0:02:55]}  e6 {[%clk 0:02:58]} 3. d4 {[%clk 0:02:55]}  cxd4 {[%clk 0:02:59]} 4. Bg5 {[%clk 0:02:55]}  Qa5+ {[%clk 0:02:55]} 5. c3 {[%clk 0:02:54]}  dxc3 {[%clk 0:02:53]} 6. Nxc3 {[%clk 0:02:54]}  Nc6 {[%clk 0:02:50]} 7. a3 {[%clk 0:02:52]}  Ne5 {[%clk 0:02:42]} 8. Bf4 {[%clk 0:02:22]}  Nxf3+ {[%clk 0:02:36]} 9. Qxf3 {[%clk 0:02:21]}  Nf6 {[%clk 0:02:30]} 10. Bd3 {[%clk 0:02:12]}  d6 {[%clk 0:02:25]} 11. b4 {[%clk 0:02:08]}  Qd8 {[%clk 0:02:14]} 12. O-O {[%clk 0:01:53]}  Be7 {[%clk 0:02:13]} 13. Rac1 {[%clk 0:01:47]}  a6 {[%clk 0:02:08]} 14. a4 {[%clk 0:01:31]}  O-O {[%clk 0:02:05]} 15. a5 {[%clk 0:01:30]}  e5 {[%clk 0:02:05]} 16. Be3 {[%clk 0:01:28]}  Be6 {[%clk 0:02:06]} 17. Nd5 {[%clk 0:01:12]}  Nxd5 {[%clk 0:02:01]} 18. exd5 {[%clk 0:01:12]}  Bd7 {[%clk 0:02:00]} 19. Bb6 {[%clk 0:01:11]}  Qe8 {[%clk 0:01:56]} 20. Rc7 {[%clk 0:01:10]}  f5 {[%clk 0:01:48]} 21. Qe2 {[%clk 0:00:57]}  e4 {[%clk 0:01:47]} 22. Bb1 {[%clk 0:00:57]}  Bb5 {[%clk 0:01:47]} 23. Qd2 {[%clk 0:00:44]}  Bxf1 {[%clk 0:01:46]} 24. Kxf1 {[%clk 0:00:45]}  Rc8 {[%clk 0:01:45]} 25. Rxb7 {[%clk 0:00:44]}  Qb5+ {[%clk 0:01:45]} 26. Kg1 {[%clk 0:00:42]}  Qc4 {[%clk 0:01:43]} 27. Be3 {[%clk 0:00:23]}  Bf6 {[%clk 0:01:37]} 28. h3 {[%clk 0:00:20]}  Rf7 {[%clk 0:01:33]} 29. Rb6 {[%clk 0:00:20]}  Be5 {[%clk 0:01:31]} 30. g3 {[%clk 0:00:17]}  Qb3 {[%clk 0:01:02]} 31. Ba2 {[%clk 0:00:15]}  Qa4 {[%clk 0:01:00]} 32. Kg2 {[%clk 0:00:15]}  Rc2 {[%clk 0:00:58]} 33. Qd1 {[%clk 0:00:09]}  Qxa2 {[%clk 0:00:53]} 34. Qh5 {[%clk 0:00:08]}  Rc8 {[%clk 0:00:45]} 35. Qg5 {[%clk 0:00:07]}  Qxd5 {[%clk 0:00:42]} 36. Rxa6 {[%clk 0:00:06]}  f4 {[%clk 0:00:41]} 37. gxf4 {[%clk 0:00:06]}  Qc4 {[%clk 0:00:34]} 38. fxe5 {[%clk 0:00:05]}  Qxa6 {[%clk 0:00:33]} 39. e6 {[%clk 0:00:05]}  Rf6 {[%clk 0:00:33]} 40. e7 {[%clk 0:00:05]}  Rg6 {[%clk 0:00:33]} 41. b5 {[%clk 0:00:05]}  Qxb5 {[%clk 0:00:33]} 42. Qxg6 {[%clk 0:00:03]}  hxg6 {[%clk 0:00:33]} 43. e8=Q+ {[%clk 0:00:03]}  Rxe8 {[%clk 0:00:33]} 44. a6 {[%clk 0:00:01]}  Qxa6 {[%clk 0:00:33]} 0-1


[Site "https://www.chess.com"]

[Event "Titled Tuesday Blitz October 31 Late 2023"]
[White "Muhammad Shahzeb"]
[Black "Seletsky, Grigory"]
[WhiteFideId "7804806"]
[BlackFideId "14112191"]
[WhiteElo "2331"]
[BlackElo "2474"]
[Result "1-0"]
[Round "3"]
[TimeControl "180+1"]
[Date "2023.10.31"]
[WhiteClock "0:00:07"]
[BlackClock "0:00:00"]
[Board "126"]

1. e4 {[%clk 0:03:00]}  e6 {[%clk 0:01:43]} 2. d4 {[%clk 0:02:57]}  d5 {[%clk 0:01:44]} 3. Nd2 {[%clk 0:02:50]}  Nc6 {[%clk 0:01:43]} 4. Ngf3 {[%clk 0:02:47]}  Nf6 {[%clk 0:01:42]} 5. e5 {[%clk 0:02:45]}  Nd7 {[%clk 0:01:42]} 6. Be2 {[%clk 0:02:42]}  f6 {[%clk 0:01:40]} 7. exf6 {[%clk 0:02:41]}  Qxf6 {[%clk 0:01:41]} 8. Nf1 {[%clk 0:02:38]}  Bd6 {[%clk 0:01:40]} 9. Ne3 {[%clk 0:02:33]}  O-O {[%clk 0:01:40]} 10. O-O {[%clk 0:02:24]}  Ne7 {[%clk 0:01:39]} 11. c4 {[%clk 0:02:16]}  c6 {[%clk 0:01:38]} 12. Bd2 {[%clk 0:01:19]}  Nf5 {[%clk 0:01:34]} 13. Ng4 {[%clk 0:00:49]}  Qg6 {[%clk 0:01:19]} 14. Nge5 {[%clk 0:00:24]}  Nxe5 {[%clk 0:01:11]} 15. dxe5 {[%clk 0:00:23]}  Bc5 {[%clk 0:01:05]} 16. Bd3 {[%clk 0:00:20]}  h6 {[%clk 0:00:43]} 17. b4 {[%clk 0:00:18]}  Bb6 {[%clk 0:00:41]} 18. c5 {[%clk 0:00:18]}  Bd8 {[%clk 0:00:39]} 19. Nd4 {[%clk 0:00:17]}  Qf7 {[%clk 0:00:35]} 20. Bxf5 {[%clk 0:00:14]}  exf5 {[%clk 0:00:35]} 21. f4 {[%clk 0:00:14]}  Be6 {[%clk 0:00:34]} 22. Qe2 {[%clk 0:00:14]}  g5 {[%clk 0:00:29]} 23. fxg5 {[%clk 0:00:12]}  hxg5 {[%clk 0:00:28]} 24. a4 {[%clk 0:00:10]}  Kg7 {[%clk 0:00:25]} 25. Bc3 {[%clk 0:00:06]}  Kg6 {[%clk 0:00:20]} 26. Qd3 {[%clk 0:00:06]}  g4 {[%clk 0:00:18]} 27. Rf2 {[%clk 0:00:03]}  Bg5 {[%clk 0:00:16]} 28. g3 {[%clk 0:00:03]}  Qe7 {[%clk 0:00:13]} 29. Raf1 {[%clk 0:00:03]}  Qd7 {[%clk 0:00:10]} 30. Bd2 {[%clk 0:00:03]}  Bxd2 {[%clk 0:00:09]} 31. Qxd2 {[%clk 0:00:04]}  Rf7 {[%clk 0:00:08]} 32. Ne2 {[%clk 0:00:04]}  Re8 {[%clk 0:00:07]} 33. Nf4+ {[%clk 0:00:05]}  Kg7 {[%clk 0:00:05]} 34. Qd4 {[%clk 0:00:06]}  Ref8 {[%clk 0:00:03]} 35. Nh5+ {[%clk 0:00:06]}  Kg6 {[%clk 0:00:00]} 36. Nf6 {[%clk 0:00:07]} 1-0


[Site "https://www.chess.com"]

[Event "Titled Tuesday Blitz October 31 Late 2023"]
[White "SlippperyWhenWet"]
[Black "Wanyama, Harold"]
[BlackFideId "10000380"]
[WhiteElo "2316"]
[BlackElo "2459"]
[Result "1-0"]
[Round "3"]
[TimeControl "180+1"]
[Date "2023.10.31"]
[WhiteClock "0:01:11"]
[BlackClock "0:00:12"]
[Board "127"]

1. d4 {[%clk 0:02:58]}  d5 {[%clk 0:02:55]} 2. Nf3 {[%clk 0:02:57]}  e6 {[%clk 0:02:55]} 3. b3 {[%clk 0:02:57]}  Nf6 {[%clk 0:02:55]} 4. Bb2 {[%clk 0:02:57]}  Bd6 {[%clk 0:02:55]} 5. Nbd2 {[%clk 0:02:57]}  O-O {[%clk 0:02:55]} 6. e3 {[%clk 0:02:58]}  b6 {[%clk 0:02:55]} 7. Bd3 {[%clk 0:02:58]}  Bb7 {[%clk 0:02:56]} 8. Ne5 {[%clk 0:02:59]}  c5 {[%clk 0:02:55]} 9. f4 {[%clk 0:02:57]}  Nc6 {[%clk 0:02:55]} 10. O-O {[%clk 0:02:56]}  Ne7 {[%clk 0:02:53]} 11. Ndf3 {[%clk 0:02:52]}  Ne4 {[%clk 0:02:52]} 12. Qe1 {[%clk 0:02:46]}  Rc8 {[%clk 0:02:50]} 13. g4 {[%clk 0:02:40]}  f6 {[%clk 0:02:48]} 14. Qh4 {[%clk 0:02:29]}  fxe5 {[%clk 0:02:44]} 15. fxe5 {[%clk 0:02:29]}  Rxf3 {[%clk 0:02:27]} 16. Rxf3 {[%clk 0:02:18]}  Bb8 {[%clk 0:02:26]} 17. Raf1 {[%clk 0:02:14]}  Ng6 {[%clk 0:02:25]} 18. Qxd8+ {[%clk 0:01:55]}  Rxd8 {[%clk 0:02:24]} 19. Bxe4 {[%clk 0:01:55]}  dxe4 {[%clk 0:02:24]} 20. Rf7 {[%clk 0:01:54]}  Bc6 {[%clk 0:02:13]} 21. c4 {[%clk 0:01:54]}  b5 {[%clk 0:02:08]} 22. d5 {[%clk 0:01:53]}  exd5 {[%clk 0:02:03]} 23. e6 {[%clk 0:01:53]}  d4 {[%clk 0:01:50]} 24. e7 {[%clk 0:01:52]}  Nxe7 {[%clk 0:01:49]} 25. exd4 {[%clk 0:01:49]}  Ng6 {[%clk 0:01:13]} 26. d5 {[%clk 0:01:47]}  Be5 {[%clk 0:01:13]} 27. dxc6 {[%clk 0:01:26]}  Bxb2 {[%clk 0:01:02]} 28. c7 {[%clk 0:01:25]}  Re8 {[%clk 0:00:49]} 29. Rd7 {[%clk 0:01:19]}  Bd4+ {[%clk 0:00:43]} 30. Kh1 {[%clk 0:01:17]}  Bf6 {[%clk 0:00:43]} 31. Rxf6 {[%clk 0:01:11]}  gxf6 {[%clk 0:00:12]} 32. Rd8 {[%clk 0:01:11]} 1-0


[Site "https://www.chess.com"]

[Event "Titled Tuesday Blitz October 31 Late 2023"]
[White "Musovic, Armin"]
[Black "Fernandez Siles, Luis"]
[WhiteFideId "939935"]
[BlackFideId "2209420"]
[WhiteElo "2458"]
[BlackElo "2302"]
[Result "0-1"]
[Round "3"]
[TimeControl "180+1"]
[Date "2023.10.31"]
[WhiteClock "0:01:09"]
[BlackClock "0:00:07"]
[Board "128"]

1. a3 {[%clk 0:03:00]}  g6 {[%clk 0:02:58]} 2. Nc3 {[%clk 0:02:59]}  d5 {[%clk 0:02:55]} 3. e4 {[%clk 0:02:58]}  dxe4 {[%clk 0:02:55]} 4. Nxe4 {[%clk 0:02:59]}  Bg7 {[%clk 0:02:55]} 5. Nf3 {[%clk 0:02:59]}  Nc6 {[%clk 0:02:45]} 6. Bc4 {[%clk 0:02:57]}  Nf6 {[%clk 0:02:37]} 7. Nxf6+ {[%clk 0:02:55]}  Bxf6 {[%clk 0:02:36]} 8. h3 {[%clk 0:02:50]}  O-O {[%clk 0:02:34]} 9. d3 {[%clk 0:02:51]}  Qd6 {[%clk 0:02:18]} 10. O-O {[%clk 0:02:49]}  e5 {[%clk 0:02:13]} 11. Re1 {[%clk 0:02:46]}  Be6 {[%clk 0:02:07]} 12. Bxe6 {[%clk 0:02:45]}  Qxe6 {[%clk 0:02:07]} 13. Ng5 {[%clk 0:02:40]}  Bxg5 {[%clk 0:01:59]} 14. Bxg5 {[%clk 0:02:40]}  f6 {[%clk 0:02:00]} 15. Be3 {[%clk 0:02:37]}  Rfe8 {[%clk 0:01:55]} 16. Qg4 {[%clk 0:02:28]}  Rad8 {[%clk 0:01:47]} 17. Qh4 {[%clk 0:02:22]}  Nd4 {[%clk 0:01:35]} 18. Rac1 {[%clk 0:02:21]}  Nf5 {[%clk 0:01:32]} 19. Qg4 {[%clk 0:02:21]}  Nxe3 {[%clk 0:01:31]} 20. Rxe3 {[%clk 0:02:21]}  Rd4 {[%clk 0:01:21]} 21. Qe2 {[%clk 0:02:19]}  Qd7 {[%clk 0:01:14]} 22. c3 {[%clk 0:02:17]}  Rd6 {[%clk 0:01:14]} 23. d4 {[%clk 0:02:15]}  Rde6 {[%clk 0:01:13]} 24. Re1 {[%clk 0:02:15]}  Kf7 {[%clk 0:01:09]} 25. dxe5 {[%clk 0:02:11]}  Rxe5 {[%clk 0:01:01]} 26. Qc4+ {[%clk 0:02:10]}  Kg7 {[%clk 0:00:59]} 27. Rxe5 {[%clk 0:02:09]}  Rxe5 {[%clk 0:00:59]} 28. Rxe5 {[%clk 0:02:09]}  fxe5 {[%clk 0:00:59]} 29. Qe4 {[%clk 0:02:06]}  c6 {[%clk 0:00:19]} 30. Kh2 {[%clk 0:02:06]}  Qd6 {[%clk 0:00:17]} 31. Kg3 {[%clk 0:01:58]}  h5 {[%clk 0:00:17]} 32. h4 {[%clk 0:01:58]}  b6 {[%clk 0:00:16]} 33. f3 {[%clk 0:01:58]}  Qd5 {[%clk 0:00:15]} 34. Qb4 {[%clk 0:01:55]}  Kf7 {[%clk 0:00:14]} 35. Qa4 {[%clk 0:01:54]}  a5 {[%clk 0:00:13]} 36. Qe4 {[%clk 0:01:52]}  Qxe4 {[%clk 0:00:13]} 37. fxe4 {[%clk 0:01:53]}  Ke6 {[%clk 0:00:12]} 38. Kf3 {[%clk 0:01:54]}  Kf6 {[%clk 0:00:12]} 39. Ke3 {[%clk 0:01:53]}  Ke6 {[%clk 0:00:11]} 40. Kd3 {[%clk 0:01:54]}  Kd6 {[%clk 0:00:12]} 41. a4 {[%clk 0:01:52]}  Kc5 {[%clk 0:00:10]} 42. Kc2 {[%clk 0:01:52]}  b5 {[%clk 0:00:10]} 43. Kb3 {[%clk 0:01:51]}  Kb6 {[%clk 0:00:08]} 44. g3 {[%clk 0:01:50]}  Kc5 {[%clk 0:00:08]} 45. axb5 {[%clk 0:01:48]}  cxb5 {[%clk 0:00:08]} 46. Ka3 {[%clk 0:01:48]}  b4+ {[%clk 0:00:06]} 47. Kb3 {[%clk 0:01:42]}  a4+ {[%clk 0:00:02]} 48. Kc2 {[%clk 0:01:30]}  bxc3 {[%clk 0:00:03]} 49. Kxc3 {[%clk 0:01:30]}  Kb5 {[%clk 0:00:02]} 50. Kd2 {[%clk 0:01:05]}  Kb4 {[%clk 0:00:02]} 51. Kd1 {[%clk 0:01:00]}  Kb3 {[%clk 0:00:02]} 52. Kc1 {[%clk 0:01:01]}  Kb4 {[%clk 0:00:01]} 53. Kb1 {[%clk 0:01:01]}  Kc4 {[%clk 0:00:01]} 54. Ka2 {[%clk 0:01:01]}  Kd4 {[%clk 0:00:02]} 55. Ka3 {[%clk 0:01:02]}  Kxe4 {[%clk 0:00:02]} 56. Kxa4 {[%clk 0:01:03]}  Kd5 {[%clk 0:00:02]} 57. Kb4 {[%clk 0:01:01]}  Kd4 {[%clk 0:00:02]} 58. Kb3 {[%clk 0:00:59]}  Kd3 {[%clk 0:00:02]} 59. Ka4 {[%clk 0:00:59]}  e4 {[%clk 0:00:02]} 60. b4 {[%clk 0:01:00]}  e3 {[%clk 0:00:03]} 61. b5 {[%clk 0:01:01]}  e2 {[%clk 0:00:04]} 62. b6 {[%clk 0:01:01]}  e1=Q {[%clk 0:00:05]} 63. Kb5 {[%clk 0:01:02]}  Qe8+ {[%clk 0:00:03]} 64. Kc5 {[%clk 0:01:02]}  Ke4 {[%clk 0:00:03]} 65. b7 {[%clk 0:01:03]}  Qb8 {[%clk 0:00:03]} 66. Kc6 {[%clk 0:01:03]}  Kf5 {[%clk 0:00:03]} 67. g4+ {[%clk 0:01:04]}  Kxg4 {[%clk 0:00:04]} 68. Kd7 {[%clk 0:01:05]}  Kxh4 {[%clk 0:00:04]} 69. Ke7 {[%clk 0:01:06]}  Kg4 {[%clk 0:00:05]} 70. Kf7 {[%clk 0:01:06]}  h4 {[%clk 0:00:05]} 71. Kg7 {[%clk 0:01:07]}  h3 {[%clk 0:00:06]} 72. Kh7 {[%clk 0:01:08]}  h2 {[%clk 0:00:07]} 73. Kg7 {[%clk 0:01:09]}  Qxb7+ {[%clk 0:00:06]} 74. Kf6 {[%clk 0:01:09]}  h1=Q {[%clk 0:00:07]} 75. Ke5 {[%clk 0:01:09]}  Qhd5+ {[%clk 0:00:07]} 76. Kf6 {[%clk 0:01:09]}  Qbf7# {[%clk 0:00:07]} 0-1


[Site "https://www.chess.com"]

[Event "Titled Tuesday Blitz October 31 Late 2023"]
[White "De Souza, Cristiano Gomes"]
[Black "Yeritsyan, Hayk"]
[WhiteFideId "2151758"]
[BlackFideId "13307320"]
[WhiteElo "2237"]
[BlackElo "2440"]
[Result "0-1"]
[Round "3"]
[TimeControl "180+1"]
[Date "2023.10.31"]
[WhiteClock "0:00:03"]
[BlackClock "0:00:34"]
[Board "129"]

1. d4 {[%clk 0:02:59]}  d5 {[%clk 0:02:57]} 2. c4 {[%clk 0:03:00]}  c6 {[%clk 0:02:56]} 3. Nf3 {[%clk 0:02:59]}  Nf6 {[%clk 0:02:56]} 4. Nc3 {[%clk 0:02:59]}  e6 {[%clk 0:02:55]} 5. Bg5 {[%clk 0:02:59]}  Nbd7 {[%clk 0:02:55]} 6. e3 {[%clk 0:02:59]}  Qa5 {[%clk 0:02:56]} 7. Nd2 {[%clk 0:02:59]}  Bb4 {[%clk 0:02:55]} 8. Qc2 {[%clk 0:02:57]}  dxc4 {[%clk 0:02:54]} 9. Bxf6 {[%clk 0:02:57]}  Nxf6 {[%clk 0:02:55]} 10. Nxc4 {[%clk 0:02:57]}  Bxc3+ {[%clk 0:02:55]} 11. bxc3 {[%clk 0:02:57]}  Qc7 {[%clk 0:02:56]} 12. Bd3 {[%clk 0:02:56]}  O-O {[%clk 0:02:56]} 13. Ne5 {[%clk 0:02:56]}  c5 {[%clk 0:02:56]} 14. O-O {[%clk 0:02:53]}  b6 {[%clk 0:02:55]} 15. Rac1 {[%clk 0:02:48]}  Bb7 {[%clk 0:02:55]} 16. f3 {[%clk 0:02:46]}  Rfd8 {[%clk 0:02:54]} 17. Rfd1 {[%clk 0:02:45]}  Rac8 {[%clk 0:02:52]} 18. Qd2 {[%clk 0:02:43]}  Nd7 {[%clk 0:02:50]} 19. Nxd7 {[%clk 0:02:43]}  Qxd7 {[%clk 0:02:51]} 20. Be4 {[%clk 0:02:37]}  Qe7 {[%clk 0:02:42]} 21. Bxb7 {[%clk 0:02:36]}  Qxb7 {[%clk 0:02:43]} 22. e4 {[%clk 0:02:32]}  Qa6 {[%clk 0:02:29]} 23. Kf2 {[%clk 0:02:23]}  h6 {[%clk 0:02:28]} 24. g3 {[%clk 0:02:22]}  Qa5 {[%clk 0:02:25]} 25. Qb2 {[%clk 0:01:59]}  Rd7 {[%clk 0:02:13]} 26. Rd2 {[%clk 0:01:58]}  Rcd8 {[%clk 0:02:00]} 27. Rcd1 {[%clk 0:01:58]}  Rd6 {[%clk 0:01:54]} 28. Rd3 {[%clk 0:01:56]}  Qa4 {[%clk 0:01:45]} 29. R1d2 {[%clk 0:01:49]}  Qa5 {[%clk 0:01:33]} 30. Qc2 {[%clk 0:01:05]}  e5 {[%clk 0:01:25]} 31. dxe5 {[%clk 0:00:56]}  Rxd3 {[%clk 0:01:24]} 32. Rxd3 {[%clk 0:00:56]}  Rxd3 {[%clk 0:01:23]} 33. Qxd3 {[%clk 0:00:56]}  Qxa2+ {[%clk 0:01:24]} 34. Kg1 {[%clk 0:00:56]}  Qe6 {[%clk 0:01:16]} 35. f4 {[%clk 0:00:55]}  g5 {[%clk 0:01:12]} 36. Qd5 {[%clk 0:00:41]}  Qxd5 {[%clk 0:00:54]} 37. exd5 {[%clk 0:00:41]}  a5 {[%clk 0:00:55]} 38. Kf2 {[%clk 0:00:37]}  a4 {[%clk 0:00:51]} 39. Ke2 {[%clk 0:00:35]}  a3 {[%clk 0:00:51]} 40. d6 {[%clk 0:00:12]}  Kf8 {[%clk 0:00:49]} 41. f5 {[%clk 0:00:12]}  a2 {[%clk 0:00:48]} 42. e6 {[%clk 0:00:13]}  fxe6 {[%clk 0:00:36]} 43. f6 {[%clk 0:00:10]}  a1=Q {[%clk 0:00:36]} 44. d7 {[%clk 0:00:03]}  Qa8 {[%clk 0:00:34]} 0-1


[Site "https://www.chess.com"]

[Event "Titled Tuesday Blitz October 31 Late 2023"]
[White "Desideri, Ricardo Maruchi"]
[Black "Kovalevsky, Stanislav"]
[WhiteFideId "2110440"]
[BlackFideId "13508598"]
[WhiteElo "1961"]
[BlackElo "2411"]
[Result "0-1"]
[Round "3"]
[TimeControl "180+1"]
[Date "2023.10.31"]
[WhiteClock "0:02:30"]
[BlackClock "0:02:27"]
[Board "130"]

1. e4 {[%clk 0:02:59]}  c6 {[%clk 0:03:00]} 2. d4 {[%clk 0:02:58]}  d5 {[%clk 0:03:00]} 3. e5 {[%clk 0:02:59]}  c5 {[%clk 0:03:00]} 4. dxc5 {[%clk 0:02:58]}  e6 {[%clk 0:03:01]} 5. Qg4 {[%clk 0:02:55]}  Nd7 {[%clk 0:02:53]} 6. f4 {[%clk 0:02:52]}  Nxc5 {[%clk 0:02:51]} 7. a3 {[%clk 0:02:48]}  Ne7 {[%clk 0:02:49]} 8. Nc3 {[%clk 0:02:48]}  Nf5 {[%clk 0:02:41]} 9. Nf3 {[%clk 0:02:37]}  h5 {[%clk 0:02:36]} 10. Qh3 {[%clk 0:02:34]}  d4 {[%clk 0:02:27]} 11. Ne4 {[%clk 0:02:30]}  Nxe4 {[%clk 0:02:27]} 0-1


[Site "https://www.chess.com"]